bitfinex/quotes_ETHUSD_20230117
["timestamp","ask_amount","ask_price","bid_price","bid_amount"]
[1673994332985,8.09480697,1579.1,1578.9,0.08701606]
[1673994333195,7.09102403,1579.1,1578.9,0.08701606]
[1673994333844,8.03718012,1579.1,1578.9,0.08701606]
[1673994334606,9.0286497,1579.1,1578.9,0.08701606]
[1673994336921,8.03718012,1579.1,1578.9,0.08701606]
[1673994338450,3.35410657,1579.1,1578.9,0.08701606]
[1673994338659,1.60842012,1579.1,1578.9,0.08701606]
[1673994338906,2.708223,1579.1,1578.9,0.08701606]
[1673994339098,1.60842012,1579.1,1578.9,0.08701606]
[1673994340235,1.60842012,1579.1,1578.9,6.42050606]
[1673994340446,1.60842012,1579.1,1578.9,6.42650606]
[1673994341485,1.60842012,1579.1,1578.9,8.34187967]
[1673994342363,1.60842012,1579.1,1578.9,6.42650606]
[1673994345179,1.48426403,1579.1,1578.9,6.42650606]
[1673994350869,0.822,1579.1,1578.9,6.42650606]
[1673994353071,0.822,1579.1,1578.9,12.76002606]
[1673994358725,0.822,1579.1,1578.9,19.09354606]
[1673994359413,0.822,1579.1,1578.9,21.70854827]
[1673994359777,0.81866565,1579.1,1578.9,22.37148427]
[1673994361825,0.66226403,1579.3,1578.9,22.37148427]
[1673994362086,0.66226403,1579.3,1578.9,34.29758427]
[1673994362298,0.66226403,1579.3,1579.0,3.42975843]
[1673994362719,0.66226403,1579.3,1579.1,18.99816]
[1673994362932,0.66226403,1579.3,1579.1,19.00416]
[1673994364195,0.66226403,1579.4,1579.1,19.00416]
[1673994365708,1.76187062,1579.4,1579.1,19.00416]
[1673994365922,0.66226403,1579.4,1579.3,12.66382]
[1673994366214,0.66226403,1579.4,1579.3,12.66982]
[1673994368199,1.65373361,1579.5,1579.3,12.66982]
[1673994368883,2.75332215,1579.5,1579.3,12.66982]
[1673994370160,0.66226403,1579.5,1579.3,12.66982]
[1673994370507,0.66226403,1579.5,1579.3,14.7660556]
[1673994371519,0.66226403,1579.5,1579.3,0.006]
[1673994371739,1.10692427,1579.2,1579.1,20.72997]
[1673994371946,1.10692427,1579.2,1579.1,12.67127]
[1673994374388,1.10692427,1579.2,1579.1,19.00399]
[1673994380436,1.10692427,1579.2,1579.1,20.910389]
[1673994381699,1.10692427,1579.2,1579.1,21.140389]
[1673994388945,1.10692427,1579.2,1579.1,24.140389]
[1673994391760,1.10692427,1579.2,1579.1,27.25701307]
[1673994393293,1.10490132,1579.2,1579.1,27.25701307]
[1673994400804,1.10490132,1579.2,1579.1,27.91994907]
[1673994406381,1.32e-06,1579.2,1579.1,35.91000907]
[1673994406592,1.32e-06,1579.2,1579.1,56.9264021]
[1673994407421,1.32e-06,1579.2,1579.1,55.9307468]
[1673994408206,1.32e-06,1579.2,1579.1,56.92611568]
[1673994408594,1.32e-06,1579.2,1579.1,56.94902358]
[1673994410172,1.32e-06,1579.2,1579.1,56.31228185]
[1673994410388,1.32e-06,1579.2,1579.1,55.62315158]
[1673994411534,1.32e-06,1579.2,1579.1,62.27615158]
[1673994415428,1.32e-06,1579.2,1579.1,63.60202358]
[1673994416093,1.32e-06,1579.2,1579.1,62.27615158]
[1673994416253,1.32e-06,1579.2,1579.1,63.60202358]
[1673994416830,1.32e-06,1579.2,1579.1,62.6066547]
[1673994418408,8.01201225,1579.8,1579.1,62.6066547]
[1673994418561,8.01201225,1579.8,1579.4,25.32524]
[1673994418772,8.01201225,1579.8,1579.5,3.34662407]
[1673994419037,8.01201225,1579.8,1579.6,28.43946407]
[1673994419197,0.20141225,1579.8,1579.7,19.22093]
[1673994419403,0.10541225,1579.8,1579.7,19.22693]
[1673994420875,0.10541225,1579.8,1579.7,18.05431956]
[1673994423504,2.05347707,1579.8,1579.7,0.006]
[1673994423718,2.05347707,1579.8,1579.6,12.66726]
[1673994424042,0.95413209,1579.8,1579.6,12.66726]
[1673994424277,0.95413209,1579.8,1579.6,18.99797]
[1673994424657,0.29186806,1579.8,1579.6,18.99797]
[1673994425711,0.95413209,1579.8,1579.6,18.99797]
[1673994427764,0.76767628,1579.8,1579.6,18.99797]
[1673994429490,0.10541225,1579.8,1579.6,18.99797]
[1673994434229,0.10541225,1579.8,1579.7,0.23]
[1673994434486,0.10541225,1579.8,1579.7,22.33755407]
[1673994434708,0.10541225,1579.8,1579.7,25.34355407]
[1673994434880,0.10541225,1579.8,1579.7,29.69708448]
[1673994439205,0.10541225,1579.8,1579.7,25.34355407]
[1673994443584,0.1029399,1579.8,1579.7,25.34355407]
[1673994445489,0.1029399,1579.8,1579.7,18.99693]
[1673994445708,0.1029399,1579.8,1579.7,12.66662]
[1673994446634,0.1029399,1579.8,1579.7,6.33631]
[1673994450256,0.19000152,1579.8,1579.7,6.33631]
[1673994450810,0.85226555,1579.8,1579.7,5.16369054]
[1673994451000,1.95159629,1579.8,1579.7,5.16369054]
[1673994455692,1.95159629,1579.8,1579.7,0.006]
[1673994456046,1.95159629,1579.8,1579.6,18.9978]
[1673994456234,0.85226555,1579.8,1579.6,18.9978]
[1673994456422,1.84373513,1579.8,1579.6,18.9978]
[1673994456628,0.85226555,1579.8,1579.6,18.99386325]
[1673994457491,0.76520393,1579.8,1579.6,22.11048732]
[1673994460726,0.1029399,1579.8,1579.6,22.11048732]
[1673994471040,0.1029399,1579.8,1579.7,3.11662407]
[1673994471258,0.1029399,1579.8,1579.7,22.33755407]
[1673994471460,0.1029399,1579.8,1579.7,22.34355407]
[1673994471681,0.1029399,1579.8,1579.7,25.21719786]
[1673994476082,0.1029399,1579.8,1579.7,28.21719786]
[1673994478874,0.09931024,1579.8,1579.7,28.21719786]
[1673994486907,0.03616006,1579.9,1579.7,28.21719786]
[1673994487112,0.03616006,1579.9,1579.8,6.34662407]
[1673994487369,0.03616006,1579.9,1579.8,28.16407386]
[1673994489758,0.03616006,1579.9,1579.8,0.006]
[1673994490008,0.03616006,1579.9,1579.6,6.33055]
[1673994490171,0.03616006,1579.9,1579.6,0.006]
[1673994490172,0.006,1579.7,1579.6,0.006]
[1673994490386,0.006,1579.7,1579.5,12.66779]
[1673994497648,0.006,1579.7,1579.5,18.9989]
[1673994498926,0.006,1579.7,1579.5,18.99689767]
[1673994499114,0.18275369,1579.7,1579.5,18.99689767]
[1673994499515,0.006,1579.7,1579.5,18.99689767]
[1673994500419,0.006,1579.7,1579.5,12.66578767]
[1673994500798,0.006,1579.7,1579.5,6.33482767]
[1673994501892,14.42834211,1579.7,1579.5,0.006]
[1673994502043,13.42489403,1579.7,1579.3,22.00118]
[1673994502250,1.44283421,1579.6,1579.3,19.00118]
[1673994505407,1.44283421,1579.6,1579.3,12.66944]
[1673994509351,3.20463129,1579.6,1579.3,12.66944]
[1673994509509,8.43583824,1579.6,1579.3,6.3377]
[1673994509723,0.84358382,1579.5,1579.3,6.3377]
[1673994510451,0.84358382,1579.5,1579.3,0.006]
[1673994510661,0.84358382,1579.5,1579.3,6.33189]
[1673994510925,0.84358382,1579.5,1579.3,6.33789]
[1673994512344,1.44283421,1579.6,1579.3,6.33789]
[1673994512555,7.77357421,1579.6,1579.3,12.6698]
[1673994512801,7.86957421,1579.6,1579.3,12.6698]
[1673994514480,7.86957421,1579.6,1579.3,6.33789]
[1673994528160,8.53183824,1579.6,1579.3,6.33789]
[1673994530361,0.8032,1579.5,1579.3,6.33789]
[1673994536076,8.08047361,1579.6,1579.3,6.33789]
[1673994536286,11.04308391,1579.6,1579.3,6.33789]
[1673994538388,0.66226403,1579.5,1579.3,6.33789]
[1673994540238,1.76174758,1579.5,1579.3,6.33789]
[1673994541456,0.16226403,1579.5,1579.3,6.33789]
[1673994541772,1.26175168,1579.5,1579.3,6.33789]
[1673994544711,2.09095723,1579.5,1579.3,0.006]
[1673994544865,16.3706419,1579.5,1579.2,12.3616]
[1673994545074,1.09948765,1579.4,1579.2,12.3616]
[1673994545529,7.43099765,1579.4,1579.2,12.3616]
[1673994545745,6.42751,1579.4,1579.2,12.3616]
[1673994546559,0.096,1579.4,1579.2,12.3616]
[1673994546766,13.65409958,1579.5,1579.2,12.3616]
[1673994546767,13.75009958,1579.5,1579.2,12.3616]
[1673994546985,1.09955491,1579.4,1579.2,12.3616]
[1673994551387,1.76402193,1579.4,1579.2,12.3616]
[1673994551857,0.66446702,1579.4,1579.2,12.3616]
[1673994552048,1.76401492,1579.4,1579.2,12.3616]
[1673994552660,0.66446702,1579.4,1579.2,12.3616]
[1673994553067,1.76401463,1579.4,1579.2,12.3616]
[1673994553482,0.66446702,1579.4,1579.2,12.3616]
[1673994554126,8.0831266,1579.5,1579.2,18.6939]
[1673994554343,10.2898092,1579.5,1579.2,18.6939]
[1673994554584,0.66446702,1579.4,1579.2,18.6939]
[1673994554795,10.2898092,1579.5,1579.2,18.6939]
[1673994554976,1.7519366,1579.5,1579.2,18.6939]
[1673994555184,0.66446702,1579.5,1579.2,34.47516407]
[1673994555465,1.76398284,1579.5,1579.2,34.47516407]
[1673994555600,0.66446702,1579.5,1579.2,34.47516407]
[1673994556039,0.66446702,1579.5,1579.2,35.13808393]
[1673994556339,0.66446702,1579.6,1579.4,18.99453]
[1673994556566,9.3147366,1579.7,1579.4,19.00053]
[1673994557580,8.32326702,1579.7,1579.4,19.00053]
[1673994558111,0.76046702,1579.7,1579.4,22.11715407]
[1673994558455,1.6559366,1579.8,1579.4,22.11715407]
[1673994558647,0.66446702,1579.8,1579.5,2.21171541]
[1673994558882,1.76378361,1579.8,1579.6,18.99213]
[1673994559060,1.76378361,1579.8,1579.6,18.99813]
[1673994561468,1.76378361,1579.8,1579.6,18.99538904]
[1673994562246,0.66446702,1579.8,1579.6,18.99538904]
[1673994562418,0.66446702,1579.8,1579.6,21.12209948]
[1673994562876,8.84202964,1579.9,1579.6,21.12209948]
[1673994562877,9.50649666,1579.9,1579.6,21.12209948]
[1673994565523,8.51502708,1579.9,1579.6,21.12209948]
[1673994572408,8.51502708,1579.9,1579.6,18.99538904]
[1673994578250,7.85056006,1579.9,1579.6,18.99538904]
[1673994581234,7.50056006,1579.9,1579.6,18.99538904]
[1673994585531,8.16502708,1579.9,1579.6,18.99538904]
[1673994586644,7.50056006,1579.9,1579.6,18.99538904]
[1673994587525,8.16502708,1579.9,1579.6,18.99538904]
[1673994588156,7.50056006,1579.9,1579.6,18.99538904]
[1673994588544,8.16502708,1579.9,1579.6,18.99538904]
[1673994588970,7.50056006,1579.9,1579.6,18.99538904]
[1673994589302,8.16502708,1579.9,1579.6,18.99538904]
[1673994593592,9.15649666,1579.9,1579.6,18.99538904]
[1673994595569,1.76374339,1579.8,1579.6,18.99538904]
[1673994595829,1.76374339,1579.8,1579.6,21.94694948]
[1673994603501,2.75521297,1579.8,1579.6,21.94694948]
[1673994603656,0.66446702,1579.8,1579.6,21.94694948]
[1673994603870,1.7637336,1579.8,1579.6,21.94694948]
[1673994614083,1.7637336,1579.8,1579.6,25.06357355]
[1673994614290,1.7637336,1579.8,1579.7,2.50635736]
[1673994614539,1.7637336,1579.8,1579.7,21.49728736]
[1673994614851,1.7637336,1579.8,1579.7,21.50328736]
[1673994616745,1.7637336,1579.8,1579.7,21.50039823]
[1673994620613,9.15649666,1579.9,1579.7,21.50039823]
[1673994621107,1.7519366,1579.9,1579.7,21.50039823]
[1673994621318,1.6559366,1579.9,1579.7,21.50039823]
[1673994621577,0.66446702,1579.8,1579.7,21.50039823]
[1673994621787,1.6559366,1579.9,1579.7,21.50039823]
[1673994622154,0.66446702,1579.8,1579.7,21.50039823]
[1673994629377,2.09072056,1579.9,1579.7,24.8470223]
[1673994629378,0.66446702,1579.9,1579.7,24.8470223]
[1673994629681,0.66446702,1579.9,1579.8,24.5910563]
[1673994629829,1.76368326,1579.9,1579.8,24.5970563]
[1673994631824,1.75583434,1580.0,1579.8,24.5970563]
[1673994632038,0.76436476,1580.0,1579.8,24.5970563]
[1673994632243,0.76436476,1580.0,1579.9,2.45970563]
[1673994632477,1.86353687,1580.0,1579.9,12.65902]
[1673994632709,1.86353687,1580.0,1579.9,12.66502]
[1673994633933,1.86353687,1580.0,1579.9,18.99453]
[1673994635201,0.09989774,1580.0,1579.9,22.34115407]
[1673994635436,0.09989774,1580.0,1579.9,25.34115407]
[1673994635617,0.09989774,1580.0,1579.9,28.7627307]
[1673994637309,0.09786082,1580.0,1579.9,28.7627307]
[1673994638711,0.09786082,1580.0,1579.9,29.39947243]
[1673994639432,0.09786082,1580.0,1579.9,36.79147243]
[1673994643536,0.09786082,1580.0,1579.9,36.1547307]
[1673994643755,0.09786082,1580.0,1579.9,36.79147243]
[1673994649003,0.10628901,1580.1,1579.9,36.79147243]
[1673994649216,0.10628901,1580.1,1580.0,29.01310131]
[1673994649432,0.10628901,1580.1,1580.0,29.01910131]
[1673994649586,0.10628901,1580.1,1580.0,29.65584304]
[1673994660788,0.10628901,1580.1,1580.0,42.02354304]
[1673994667475,0.10628901,1580.1,1580.0,41.38680131]
[1673994667746,0.10628901,1580.1,1580.0,42.02354304]
[1673994670279,0.10403012,1580.1,1580.0,42.02354304]
[1673994674326,0.10403012,1580.1,1580.0,42.6864629]
[1673994681429,0.10403012,1580.1,1580.0,43.68084269]
[1673994683803,1.2e-07,1580.1,1580.0,43.01792283]
[1673994684685,1.2e-07,1580.1,1580.0,43.68051463]
[1673994684906,1.2e-07,1580.1,1580.0,43.01792283]
[1673994686365,1.2e-07,1580.1,1580.0,43.68063391]
[1673994686796,1.2e-07,1580.1,1580.0,43.01792283]
[1673994687019,1.2e-07,1580.1,1580.0,44.34379483]
[1673994687896,1.2e-07,1580.1,1580.0,43.01792283]
[1673994688123,1.2e-07,1580.1,1580.0,45.00061167]
[1673994688371,1.2e-07,1580.1,1580.0,45.0000551]
[1673994688563,1.2e-07,1580.1,1580.0,46.84885847]
[1673994689217,1.2e-07,1580.1,1580.0,48.5000551]
[1673994689431,1.2e-07,1580.1,1580.0,47.17473967]
[1673994690495,1.2e-07,1580.1,1580.0,53.82773967]
[1673994692579,1.2e-07,1580.1,1580.0,55.15175968]
[1673994693107,1.2e-07,1580.1,1580.0,53.50056305]
[1673994698783,1.2e-07,1580.1,1580.0,50.99393828]
[1673994699095,1.2e-07,1580.1,1580.0,49.66991827]
[1673994699333,1.2e-07,1580.1,1580.0,50.33219668]
[1673994700983,1.2e-07,1580.1,1580.0,49.66991827]
[1673994702512,1.2e-07,1580.1,1580.0,53.16991827]
[1673994703612,1.2e-07,1580.1,1580.0,49.66991827]
[1673994703978,1.2e-07,1580.1,1580.0,53.16991827]
[1673994704208,1.2e-07,1580.1,1580.0,54.49393828]
[1673994705797,0.10118991,1580.2,1580.1,0.00240838]
[1673994705993,0.10118991,1580.2,1580.1,27.33466539]
[1673994706209,0.10118991,1580.2,1580.1,31.20740712]
[1673994706609,9.91e-06,1580.2,1580.1,39.86040712]
[1673994706889,0.10301477,1580.3,1580.1,36.36040712]
[1673994707045,0.10301477,1580.3,1580.2,26.83155407]
[1673994707259,0.10301477,1580.3,1580.2,29.3222563]
[1673994707465,0.10301477,1580.3,1580.2,29.95899803]
[1673994709251,0.10301477,1580.3,1580.2,28.45899803]
[1673994710074,0.10301477,1580.3,1580.2,29.12127629]
[1673994711446,0.10301477,1580.3,1580.2,25.7442958]
[1673994712861,0.10301477,1580.3,1580.2,25.9742958]
[1673994713230,0.10301477,1580.3,1580.2,26.63657406]
[1673994715230,0.10301477,1580.3,1580.2,25.9742958]
[1673994715434,0.10301477,1580.3,1580.2,6.33431]
[1673994715722,0.10301477,1580.3,1580.2,0.006]
[1673994715941,0.10301477,1580.3,1580.1,6.33709838]
[1673994716065,0.1914536,1580.3,1580.1,6.33709838]
[1673994716925,0.85592062,1580.3,1580.1,0.00840838]
[1673994717155,1.95492775,1580.3,1580.1,0.00240838]
[1673994717369,0.19549278,1580.2,1580.1,0.00240838]
[1673994718927,6.52380278,1580.2,1580.1,0.00240838]
[1673994719178,22.6889573,1580.2,1580.1,0.00240838]
[1673994719350,21.69748772,1580.2,1580.1,0.00240838]
[1673994719550,21.69748772,1580.2,1579.6,12.66692]
[1673994719766,0.66312432,1580.0,1579.6,15.78354407]
[1673994720075,1.76222982,1580.0,1579.6,15.78354407]
[1673994721342,8.09134982,1580.0,1579.6,12.66692]
[1673994721553,7.08824432,1580.0,1579.6,12.66692]
[1673994722185,7.08824432,1580.0,1579.6,6.33641]
[1673994722395,0.70882443,1579.9,1579.6,6.33641]
[1673994724210,7.03835443,1579.9,1579.6,0.006]
[1673994724406,7.13435443,1579.9,1579.5,18.99856]
[1673994724612,7.13435443,1579.9,1579.5,22.11518407]
[1673994724822,7.13435443,1579.9,1579.5,15.78428407]
[1673994725051,0.71343544,1579.8,1579.5,15.78428407]
[1673994726029,0.71343544,1579.8,1579.5,12.66766]
[1673994736483,0.71343544,1579.8,1579.5,6.33677]
[1673994736686,7.04342544,1579.8,1579.5,6.33677]
[1673994736932,7.13942544,1579.8,1579.5,6.33677]
[1673994737175,0.71394254,1579.7,1579.5,6.33677]
[1673994737891,0.71394254,1579.7,1579.5,0.006]
[1673994738084,0.71394254,1579.7,1579.4,15.66862]
[1673994738628,0.71394254,1579.7,1579.4,9.33729]
[1673994738629,7.04429254,1579.7,1579.4,9.33729]
[1673994738820,7.14029254,1579.7,1579.4,9.33729]
[1673994739731,0.71402925,1579.6,1579.4,9.33729]
[1673994739941,7.14029254,1579.7,1579.4,9.33729]
[1673994741567,7.14029254,1579.7,1579.4,3.006]
[1673994741780,13.47064254,1579.7,1579.3,12.72934]
[1673994741950,13.47064254,1579.7,1579.3,12.66934]
[1673994742301,1.34706425,1579.6,1579.3,12.66934]
[1673994744253,1.34412414,1579.6,1579.3,12.66934]
[1673994747425,7.67487414,1579.6,1579.3,6.3376]
[1673994747675,7.77087414,1579.6,1579.3,6.3376]
[1673994748006,0.77708741,1579.5,1579.3,6.3376]
[1673994758562,0.77708741,1579.5,1579.3,6.99987826]
[1673994764484,7.10823741,1579.5,1579.3,0.006]
[1673994764816,7.20423741,1579.5,1579.2,17.86717769]
[1673994765030,13.53538741,1579.5,1579.2,11.53514769]
[1673994765398,1.35353874,1579.4,1579.2,11.53514769]
[1673994765950,7.68508874,1579.4,1579.2,11.53514769]
[1673994766131,7.78108874,1579.4,1579.2,0.74684769]
[1673994766343,7.78108874,1579.4,1579.2,0.74084769]
[1673994768343,7.78108874,1579.4,1579.2,0.07856943]
[1673994769291,0.77810887,1579.3,1579.2,0.07856943]
[1673994770561,14.11275874,1579.4,1579.2,0.07856943]
[1673994773230,14.10988648,1579.4,1579.2,0.07856943]
[1673994791105,14.7730108,1579.4,1579.2,0.07856943]
[1673994792331,14.10988648,1579.4,1579.2,0.07856943]
[1673994797698,1.44666648,1579.4,1579.2,0.07856943]
[1673994797913,1.5,1579.4,1579.2,0.07856943]
[1673994798237,12.66322,1579.4,1579.2,0.07856943]
[1673994798593,12.75922,1579.4,1579.2,0.07856943]
[1673994805715,0.7237,1579.3,1579.2,0.07856943]
[1673994805931,7.05561,1579.3,1579.2,0.07856943]
[1673994806141,7.15161,1579.3,1579.2,0.07856943]
[1673994808525,9.19940543,1579.3,1579.2,0.07856943]
[1673994815363,7.15161,1579.3,1579.2,0.07856943]
[1673994826238,19.81543,1579.3,1579.2,0.07856943]
[1673994826461,21.57819555,1579.3,1579.2,0.07552543]
[1673994827385,23.22751882,1579.3,1579.2,0.07552543]
[1673994828260,23.55908098,1579.3,1579.2,0.07552543]
[1673994828424,1.5,1579.2,1579.1,0.08130626]
[1673994828638,18.99696,1579.2,1579.1,0.08130626]
[1673994828952,19.09296,1579.2,1579.1,0.08130626]
[1673994834303,20.85652372,1579.2,1579.1,0.08130626]
[1673994835385,19.09296,1579.2,1579.1,0.08130626]
[1673994835610,22.36133044,1579.2,1579.1,0.08130626]
[1673994836027,24.1248903,1579.2,1579.1,0.08130626]
[1673994836253,27.24151437,1579.2,1579.1,0.08130626]
[1673994836413,28.89107091,1579.2,1579.1,0.08130626]
[1673994836857,27.24151437,1579.2,1579.1,0.08130626]
[1673994837040,28.89107091,1579.2,1579.1,0.08130626]
[1673994837246,27.24151437,1579.2,1579.1,0.08130626]
[1673994837715,28.23620085,1579.2,1579.1,0.08130626]
[1673994837965,29.88587229,1579.2,1579.1,0.08130626]
[1673994838217,28.89118581,1579.2,1579.1,0.08130626]
[1673994839203,29.88587229,1579.2,1579.1,0.08130626]
[1673994839389,29.22202993,1579.2,1579.1,0.08130626]
[1673994839711,32.54930289,1579.2,1579.1,0.08130626]
[1673994840133,40.09270289,1579.2,1579.1,0.08130626]
[1673994840508,42.37986718,1579.2,1579.1,0.08130626]
[1673994841181,40.72944462,1579.2,1579.1,0.08130626]
[1673994842193,42.37986718,1579.2,1579.1,0.08130626]
[1673994842401,40.72944462,1579.2,1579.1,0.08130626]
[1673994845182,25.36007723,1579.0,1578.9,0.08701606]
[1673994845344,33.02013329,1579.0,1578.9,0.08701606]
[1673994846129,40.77133329,1579.0,1578.9,0.08701606]
[1673994846505,39.00990902,1579.0,1578.9,0.08701606]
[1673994848293,39.00990902,1579.0,1578.8,1e-08]
[1673994848651,22.11718407,1578.9,1578.8,1e-08]
[1673994848961,22.9976709,1578.9,1578.8,1e-08]
[1673994850607,26.11429497,1578.9,1578.8,1e-08]
[1673994856164,27.03179067,1578.9,1578.8,1e-08]
[1673994857526,26.11429497,1578.9,1578.8,1e-08]
[1673994862078,26.78239497,1578.9,1578.8,1e-08]
[1673994863350,30.4191367,1578.9,1578.8,1e-08]
[1673994864618,32.18094779,1578.9,1578.8,1e-08]
[1673994865027,44.98472005,1578.9,1578.8,1e-08]
[1673994865214,44.55301328,1578.9,1578.7,0.09191251]
[1673994865430,48.7652658,1578.8,1578.7,0.09191251]
[1673994865632,48.8612658,1578.8,1578.7,0.09191251]
[1673994865839,49.49800753,1578.8,1578.4,0.09656149]
[1673994866034,23.11958407,1578.7,1578.4,0.09656149]
[1673994866241,26.21558407,1578.7,1578.4,0.09656149]
[1673994866504,29.48395451,1578.7,1578.4,0.09656149]
[1673994867350,36.14495451,1578.7,1578.4,0.09656149]
[1673994867517,36.78169624,1578.7,1578.4,0.09656149]
[1673994868256,1.0,1578.6,1578.4,0.09656149]
[1673994868475,28.55710407,1578.5,1578.4,0.09656149]
[1673994868674,28.65310407,1578.5,1578.4,0.09656149]
[1673994872718,31.65310407,1578.5,1578.4,0.09656149]
[1673994873879,41.48822407,1578.5,1578.4,0.09656149]
[1673994874051,4.14882241,1578.4,1578.3,0.10343151]
[1673994874245,32.77200648,1578.4,1578.3,0.10343151]
[1673994874456,29.36800648,1578.4,1578.3,0.10343151]
[1673994876827,38.42683148,1578.4,1578.2,0.1065585]
[1673994876986,26.12441407,1578.3,1578.2,0.1065585]
[1673994877200,31.62028112,1578.3,1578.2,0.1065585]
[1673994877400,1.0,1578.2,1578.1,0.10425952]
[1673994877606,4.11662407,1578.2,1578.1,0.10425952]
[1673994877872,23.12561407,1578.2,1578.1,0.10425952]
[1673994878038,23.12561407,1578.2,1578.0,0.12687869]
[1673994878039,8.97356141,1578.1,1578.0,0.12687869]
[1673994878255,35.19637548,1578.1,1578.0,0.12687869]
[1673994879499,7.661,1578.0,1577.6,7.51292753]
[1673994879711,7.661,1578.0,1577.6,0.19942753]
[1673994879712,3.11662407,1577.9,1577.6,0.19942753]
[1673994879974,28.46674407,1577.9,1577.6,0.13342753]
[1673994880134,6.661,1577.7,1577.6,0.13342753]
[1673994880342,35.22698407,1577.7,1577.6,0.13342753]
[1673994881819,35.22698407,1577.7,1577.4,0.04723476]
[1673994882025,3.11662407,1577.6,1577.4,0.04723476]
[1673994882234,28.78484648,1577.5,1577.4,0.04723476]
[1673994882490,28.88084648,1577.5,1577.4,0.04723476]
[1673994888189,29.18784648,1577.5,1577.4,0.04723476]
[1673994890703,29.41784648,1577.5,1577.4,0.04723476]
[1673994891550,29.41784648,1577.5,1577.2,0.14845626]
[1673994891872,19.01982,1577.3,1577.2,0.14845626]
[1673994892017,22.23244407,1577.3,1577.2,0.14845626]
[1673994900057,23.82176907,1577.3,1577.2,0.14845626]
[1673994900260,27.05176907,1577.3,1577.2,0.14845626]
[1673994902055,7.51216811,1577.1,1575.9,0.04113636]
[1673994902406,7.51216811,1577.1,1575.8,0.01886364]
[1673994902407,9.77762407,1576.0,1575.8,0.01886364]
[1673994902562,9.77762407,1576.0,1575.2,0.04545455]
[1673994902563,10.458,1575.6,1575.2,0.04545455]
[1673994902790,6.661,1575.4,1575.2,0.04545455]
[1673994903022,29.48769407,1575.3,1575.2,4.55e-06]
[1673994903310,29.48769407,1575.3,1574.6,0.0121628]
[1673994903311,14.23037871,1575.3,1574.6,0.0121628]
[1673994903523,3.11662407,1574.9,1574.7,0.052]
[1673994903784,15.81664407,1574.8,1574.6,0.0121628]
[1673994904000,0.096,1574.8,1574.6,0.0121628]
[1673994904153,6.349,1575.1,1574.6,0.61484601]
[1673994904154,0.096,1575.1,1574.6,0.61484601]
[1673994904366,3.11662407,1575.1,1574.6,0.07862467]
[1673994904579,0.096,1575.2,1574.6,1.07862467]
[1673994904786,5.287,1575.3,1574.6,13.78011467]
[1673994905024,5.287,1575.3,1574.7,3.0]
[1673994905321,5.287,1575.3,1574.8,19.04929]
[1673994905689,5.287,1575.3,1575.0,7.34897]
[1673994905852,5.287,1575.3,1575.1,3.16458688]
[1673994906076,5.287,1575.3,1575.1,9.51308688]
[1673994906284,5.287,1575.3,1575.1,9.51708688]
[1673994906631,5.287,1575.3,1575.2,1.23]
[1673994906845,5.287,1575.3,1575.2,2.30470869]
[1673994910196,0.06,1575.9,1575.2,2.30470869]
[1673994910412,0.096,1576.2,1575.4,12.69454]
[1673994910564,3.11662407,1576.2,1575.5,10.57707]
[1673994910775,3.11662407,1576.2,1575.5,3.236]
[1673994910992,3.11662407,1576.2,1575.6,0.3236]
[1673994910993,3.11662407,1576.1,1575.6,0.3236]
[1673994911360,3.11662407,1576.1,1575.6,0.2736]
[1673994912514,1.05166441,1576.2,1575.6,1.2736]
[1673994912667,3.11662407,1576.2,1575.6,1.2736]
[1673994912876,3.11662407,1576.2,1575.6,0.2736]
[1673994914380,3.11662407,1576.2,1575.5,6.35314]
[1673994914574,3.11662407,1576.2,1575.5,12.70033]
[1673994914786,3.11662407,1576.2,1575.6,1.0]
[1673994915095,3.11662407,1576.2,1575.6,13.69318]
[1673994915310,3.11662407,1576.2,1575.6,13.69918]
[1673994915574,3.096,1576.3,1575.8,12.69163]
[1673994915730,0.096,1576.4,1575.8,12.69763]
[1673994915947,3.11662407,1576.4,1575.8,12.69763]
[1673994916297,3.11662407,1576.3,1575.8,0.006]
[1673994916513,9.46102407,1576.2,1575.7,12.4104]
[1673994916664,4.06272648,1576.1,1575.7,12.4044]
[1673994917083,15.38828577,1576.0,1575.7,12.4044]
[1673994917293,15.48428577,1576.0,1575.7,12.4044]
[1673994917539,15.38828577,1575.9,1575.7,12.4044]
[1673994917765,15.38828577,1575.9,1575.8,0.23]
[1673994917766,15.48428577,1575.9,1575.8,0.23]
[1673994917977,15.48428577,1575.9,1575.8,3.128078]
[1673994918189,15.48428577,1575.9,1575.8,18.820038]
[1673994918499,15.48428577,1575.9,1575.8,18.826038]
[1673994918867,15.48428577,1575.9,1575.8,18.80608621]
[1673994919445,0.096,1575.9,1575.8,18.80608621]
[1673994919677,6.43936,1576.5,1575.8,18.80608621]
[1673994919815,3.76056007,1576.4,1575.8,18.80608621]
[1673994920706,3.76056007,1576.4,1575.8,17.80608621]
[1673994923332,3.76056007,1576.4,1575.8,15.90800821]
[1673994923965,0.6626,1576.3,1575.8,15.90800821]
[1673994924183,0.6626,1576.3,1575.8,12.90800821]
[1673994925393,0.6626,1576.3,1575.8,12.85800821]
[1673994926272,0.6626,1576.3,1575.9,1.0]
[1673994926465,1.11451601,1576.3,1576.0,6.34517]
[1673994926640,1.11451601,1576.3,1576.0,6.35117]
[1673994928433,0.6626,1576.3,1576.0,7.35117]
[1673994928784,0.6626,1576.3,1576.0,13.69634]
[1673994929331,6.43887,1576.6,1576.2,6.34434]
[1673994929486,9.55549407,1576.6,1576.2,0.006]
[1673994929689,15.89836407,1576.6,1576.1,18.96515]
[1673994929907,1.58983641,1576.5,1576.1,18.96515]
[1673994930358,7.93306641,1576.5,1576.1,18.96515]
[1673994930544,8.02906641,1576.5,1576.1,18.96515]
[1673994931166,8.02906641,1576.5,1576.1,25.30992]
[1673994931167,1.68583641,1576.5,1576.1,25.30992]
[1673994931371,1.58983641,1576.5,1576.1,25.30992]
[1673994931587,0.15898364,1576.4,1576.1,25.30992]
[1673994933425,0.15898364,1576.4,1576.2,6.82790142]
[1673994933640,0.15898364,1576.4,1576.2,6.83390142]
[1673994934422,0.15898364,1576.4,1576.2,8.33390142]
[1673994934627,0.15898364,1576.4,1576.2,14.01729709]
[1673994934916,12.7979838,1576.7,1576.2,14.01729709]
[1673994935213,12.7979838,1576.7,1576.3,0.23]
[1673994935214,6.4553338,1576.7,1576.3,0.23]
[1673994935381,6.4553338,1576.7,1576.3,6.57377]
[1673994935745,6.4553338,1576.7,1576.3,12.92374]
[1673994935890,0.1129638,1576.7,1576.3,12.92374]
[1673994936151,0.66248418,1576.7,1576.3,12.92374]
[1673994937238,0.0169638,1576.7,1576.4,1.5]
[1673994937399,0.0169638,1576.7,1576.5,12.68632]